[Event "Late-Titled-Tuesday-Blitz-January-16-2024"]
[Site "Chess.com"]
[Date "2024.01.16"]
[Round "8"]
[White "aghasiyevkamal"]
[Black "MikaelyanArman"]
[Result "1/2-1/2"]
[WhiteElo "2627"]
[BlackElo "2853"]
[TimeControl "180+1"]
[EndTime "15:31:17 PST"]
[Termination "Game drawn by 50-move rule"]

1. e4 {[%clk 0:02:59.9]} 1... g6 {[%clk 0:02:57.7]} 2. d4 {[%clk 0:02:59]} 2...
Bg7 {[%clk 0:02:58.4]} 3. c3 {[%clk 0:02:58.9]} 3... d6 {[%clk 0:02:57.8]} 4.
Bd3 {[%clk 0:02:58.6]} 4... c5 {[%clk 0:02:57.6]} 5. Nf3 {[%clk 0:02:56.9]} 5...
Nc6 {[%clk 0:02:54.9]} 6. Be3 {[%clk 0:02:56.1]} 6... Bg4 {[%clk 0:02:50.8]} 7.
d5 {[%clk 0:02:55.7]} 7... Bxf3 {[%clk 0:02:47.6]} 8. Qxf3 {[%clk 0:02:48.4]}
8... Ne5 {[%clk 0:02:47.7]} 9. Bb5+ {[%clk 0:02:48.6]} 9... Kf8 {[%clk
0:02:43.7]} 10. Qe2 {[%clk 0:02:45.6]} 10... a6 {[%clk 0:02:36.6]} 11. Ba4
{[%clk 0:02:44.3]} 11... Nf6 {[%clk 0:02:34.9]} 12. Nd2 {[%clk 0:02:33.2]} 12...
h5 {[%clk 0:02:21.5]} 13. h3 {[%clk 0:02:31.4]} 13... h4 {[%clk 0:02:17.8]} 14.
O-O {[%clk 0:02:28.6]} 14... Nh5 {[%clk 0:02:14.9]} 15. Bc2 {[%clk 0:02:15.2]}
15... Qd7 {[%clk 0:02:04.4]} 16. a4 {[%clk 0:02:09.9]} 16... Qc7 {[%clk
0:01:54.2]} 17. a5 {[%clk 0:02:06.1]} 17... Bf6 {[%clk 0:01:51.9]} 18. Rfd1
{[%clk 0:01:51.9]} 18... g5 {[%clk 0:01:51.8]} 19. Rdc1 {[%clk 0:01:39]} 19...
Nf4 {[%clk 0:01:51.7]} 20. Qf1 {[%clk 0:01:13.3]} 20... Rg8 {[%clk 0:01:36.9]}
21. Bd1 {[%clk 0:01:08.9]} 21... Ned3 {[%clk 0:01:24.6]} 22. Rc2 {[%clk
0:01:05.5]} 22... Ne5 {[%clk 0:01:10.1]} 23. Nc4 {[%clk 0:01:01.6]} 23... Nxc4
{[%clk 0:01:03.4]} 24. Qxc4 {[%clk 0:01:01.5]} 24... Be5 {[%clk 0:01:02]} 25.
Bg4 {[%clk 0:01:00.9]} 25... b5 {[%clk 0:00:57.8]} 26. axb6 {[%clk 0:00:59.3]}
26... Qxb6 {[%clk 0:00:58.2]} 27. b4 {[%clk 0:00:58.8]} 27... Kg7 {[%clk
0:00:52.3]} 28. bxc5 {[%clk 0:00:45.9]} 28... dxc5 {[%clk 0:00:53.2]} 29. Bxc5
{[%clk 0:00:41.9]} 29... Qf6 {[%clk 0:00:53]} 30. Bd4 {[%clk 0:00:39.8]} 30...
Rgd8 {[%clk 0:00:44]} 31. Bxe5 {[%clk 0:00:34.6]} 31... Qxe5 {[%clk 0:00:44.9]}
32. Qd4 {[%clk 0:00:34.9]} 32... Kf6 {[%clk 0:00:40.5]} 33. Rb2 {[%clk
0:00:30.4]} 33... Qxd4 {[%clk 0:00:34.8]} 34. cxd4 {[%clk 0:00:30.2]} 34... Kg7
{[%clk 0:00:35.7]} 35. Ra5 {[%clk 0:00:24.1]} 35... Rd6 {[%clk 0:00:32.7]} 36.
g3 {[%clk 0:00:21.1]} 36... Ng6 {[%clk 0:00:27.2]} 37. Rb7 {[%clk 0:00:18.7]}
37... Rad8 {[%clk 0:00:19.3]} 38. Ra7 {[%clk 0:00:14.1]} 38... Rb8 {[%clk
0:00:19.5]} 39. R7xa6 {[%clk 0:00:13.4]} 39... hxg3 {[%clk 0:00:18.1]} 40. fxg3
{[%clk 0:00:08.9]} 40... Rb3 {[%clk 0:00:18.3]} 41. Rxd6 {[%clk 0:00:06.6]}
41... exd6 {[%clk 0:00:19.2]} 42. Ra6 {[%clk 0:00:05.4]} 42... Rxg3+ {[%clk
0:00:17.2]} 43. Kf2 {[%clk 0:00:05.8]} 43... Rd3 {[%clk 0:00:18.1]} 44. Rxd6
{[%clk 0:00:05.7]} 44... Nf4 {[%clk 0:00:18.2]} 45. e5 {[%clk 0:00:03.5]} 45...
Rxd4 {[%clk 0:00:17.5]} 46. e6 {[%clk 0:00:03.1]} 46... fxe6 {[%clk 0:00:17.2]}
47. Bxe6 {[%clk 0:00:03.4]} 47... Kf6 {[%clk 0:00:14.8]} 48. Ke3 {[%clk
0:00:02.6]} 48... Ke5 {[%clk 0:00:10.8]} 49. Ra6 {[%clk 0:00:02.1]} 49... Rd3+
{[%clk 0:00:10.6]} 50. Kf2 {[%clk 0:00:02]} 50... Rd2+ {[%clk 0:00:08.3]} 51.
Kf3 {[%clk 0:00:02.1]} 51... Rd3+ {[%clk 0:00:08]} 52. Kg4 {[%clk 0:00:02.6]}
52... Nxh3 {[%clk 0:00:07]} 53. d6 {[%clk 0:00:02.5]} 53... Nf2+ {[%clk
0:00:06.3]} 54. Kxg5 {[%clk 0:00:02.5]} 54... Kxe6 {[%clk 0:00:06.9]} 55. d7+
{[%clk 0:00:03]} 55... Kxd7 {[%clk 0:00:06.5]} 56. Ra7+ {[%clk 0:00:03.9]} 56...
Ke6 {[%clk 0:00:06.5]} 57. Ra6+ {[%clk 0:00:04.6]} 57... Ke5 {[%clk 0:00:06]}
58. Ra5+ {[%clk 0:00:05.1]} 58... Ke4 {[%clk 0:00:06.6]} 59. Ra4+ {[%clk
0:00:05.6]} 59... Kf3 {[%clk 0:00:06.3]} 60. Rf4+ {[%clk 0:00:05.5]} 60... Kg3
{[%clk 0:00:06.9]} 61. Rf8 {[%clk 0:00:05.2]} 61... Ne4+ {[%clk 0:00:07.1]} 62.
Kg6 {[%clk 0:00:05.3]} 62... Kg4 {[%clk 0:00:07.6]} 63. Ra8 {[%clk 0:00:04.9]}
63... Rd6+ {[%clk 0:00:07.8]} 64. Kg7 {[%clk 0:00:05]} 64... Ng5 {[%clk
0:00:08]} 65. Ra4+ {[%clk 0:00:04.4]} 65... Kh5 {[%clk 0:00:08.1]} 66. Ra5
{[%clk 0:00:04.8]} 66... Re6 {[%clk 0:00:06.2]} 67. Rb5 {[%clk 0:00:04.6]} 67...
Rc6 {[%clk 0:00:04.6]} 68. Ra5 {[%clk 0:00:04.9]} 68... Rg6+ {[%clk 0:00:04.7]}
69. Kf8 {[%clk 0:00:04.7]} 69... Kh6 {[%clk 0:00:05]} 70. Ra1 {[%clk 0:00:04.3]}
70... Rb6 {[%clk 0:00:04.1]} 71. Ke7 {[%clk 0:00:04.3]} 71... Kg6 {[%clk
0:00:04.5]} 72. Kd7 {[%clk 0:00:04.1]} 72... Rb3 {[%clk 0:00:04.6]} 73. Kc6
{[%clk 0:00:04.4]} 73... Kf6 {[%clk 0:00:04.5]} 74. Kd5 {[%clk 0:00:04.7]} 74...
Kf5 {[%clk 0:00:04.6]} 75. Kc4 {[%clk 0:00:05.1]} 75... Rf3 {[%clk 0:00:04.4]}
76. Kd4 {[%clk 0:00:05.5]} 76... Ne6+ {[%clk 0:00:04.3]} 77. Kc4 {[%clk
0:00:05.5]} 77... Ke5 {[%clk 0:00:03]} 78. Re1+ {[%clk 0:00:05.7]} 78... Kd6
{[%clk 0:00:02.6]} 79. Rd1+ {[%clk 0:00:06.3]} 79... Kc6 {[%clk 0:00:03.2]} 80.
Re1 {[%clk 0:00:06.5]} 80... Rf4+ {[%clk 0:00:03.7]} 81. Kd3 {[%clk 0:00:06.6]}
81... Kd5 {[%clk 0:00:04.3]} 82. Rh1 {[%clk 0:00:06]} 82... Rf3+ {[%clk
0:00:04]} 83. Ke2 {[%clk 0:00:05.8]} 83... Nd4+ {[%clk 0:00:04.9]} 84. Kd2
{[%clk 0:00:06.3]} 84... Rf2+ {[%clk 0:00:03.4]} 85. Ke3 {[%clk 0:00:06.4]}
85... Rf3+ {[%clk 0:00:03.8]} 86. Kd2 {[%clk 0:00:06.4]} 86... Rg3 {[%clk
0:00:04.7]} 87. Rh5+ {[%clk 0:00:05.5]} 87... Kc4 {[%clk 0:00:05.1]} 88. Rh8
{[%clk 0:00:05.8]} 88... Rd3+ {[%clk 0:00:04.3]} 89. Ke1 {[%clk 0:00:06]} 89...
Rf3 {[%clk 0:00:03.6]} 90. Kd2 {[%clk 0:00:06]} 90... Rf1 {[%clk 0:00:03.5]} 91.
Rc8+ {[%clk 0:00:05.3]} 91... Kd5 {[%clk 0:00:03.9]} 92. Rd8+ {[%clk 0:00:05.7]}
92... Ke5 {[%clk 0:00:04.5]} 93. Re8+ {[%clk 0:00:06.2]} 93... Ne6 {[%clk
0:00:05.1]} 94. Ke2 {[%clk 0:00:06]} 94... Rf4 {[%clk 0:00:05.3]} 95. Ra8 {[%clk
0:00:06.1]} 95... Rh4 {[%clk 0:00:05.8]} 96. Kf3 {[%clk 0:00:06.3]} 96... Rh3+
{[%clk 0:00:05.7]} 97. Kg4 {[%clk 0:00:06.5]} 97... Rd3 {[%clk 0:00:05.5]} 98.
Ra5+ {[%clk 0:00:06.7]} 98... Ke4 {[%clk 0:00:05.9]} 99. Ra4+ {[%clk 0:00:06.7]}
99... Nd4 {[%clk 0:00:06.5]} 100. Rb4 {[%clk 0:00:05.9]} 100... Rd1 {[%clk
0:00:07]} 101. Ra4 {[%clk 0:00:06]} 101... Rg1+ {[%clk 0:00:07.2]} 102. Kh3
{[%clk 0:00:06.2]} 102... Kf3 {[%clk 0:00:06.6]} 103. Kh2 {[%clk 0:00:06.6]}
103... Rg2+ {[%clk 0:00:06.8]} 104. Kh1 {[%clk 0:00:06.4]} 104... Rd2 {[%clk
0:00:07.4]} 105. Ra3+ {[%clk 0:00:06.3]} 105... Kf2 {[%clk 0:00:07]} 1/2-1/2

[Event "Late-Titled-Tuesday-Blitz-January-16-2024"]
[Site "Chess.com"]
[Date "2024.01.16"]
[Round "9"]
[White "iturrizaga"]
[Black "mbojan"]
[Result "1-0"]
[WhiteElo "3013"]
[BlackElo "2860"]
[TimeControl "180+1"]
[EndTime "15:41:51 PST"]
[Termination "iturrizaga won by resignation"]

1. d4 {[%clk 0:02:55.3]} 1... g6 {[%clk 0:03:00.1]} 2. Nf3 {[%clk 0:02:55.3]}
2... Bg7 {[%clk 0:02:59.6]} 3. e4 {[%clk 0:02:55.3]} 3... d5 {[%clk 0:02:59.3]}
4. exd5 {[%clk 0:02:55.6]} 4... Qxd5 {[%clk 0:02:59.4]} 5. Nc3 {[%clk
0:02:55.7]} 5... Qd8 {[%clk 0:02:52.1]} 6. Bc4 {[%clk 0:02:55.4]} 6... Nf6
{[%clk 0:02:52.3]} 7. O-O {[%clk 0:02:54.8]} 7... Bg4 {[%clk 0:02:43]} 8. Bxf7+
{[%clk 0:02:54.2]} 8... Kxf7 {[%clk 0:02:06.3]} 9. Ne5+ {[%clk 0:02:53.8]} 9...
Ke8 {[%clk 0:02:07.1]} 10. Nxg4 {[%clk 0:02:53.9]} 10... Nxg4 {[%clk 0:01:56.5]}
11. Qxg4 {[%clk 0:02:54.8]} 11... Nc6 {[%clk 0:01:56.8]} 12. d5 {[%clk
0:02:53.9]} 12... Ne5 {[%clk 0:01:55.7]} 13. Qe4 {[%clk 0:02:50.8]} 13... Nf7
{[%clk 0:01:29.7]} 14. Re1 {[%clk 0:02:47.6]} 14... Nd6 {[%clk 0:01:30.2]} 15.
Qa4+ {[%clk 0:02:35.4]} 15... Qd7 {[%clk 0:01:30.1]} 16. Rxe7+ {[%clk
0:02:35.4]} 16... Kxe7 {[%clk 0:01:26.9]} 17. Bg5+ {[%clk 0:02:35.3]} 1-0

[Event "Late-Titled-Tuesday-Blitz-January-16-2024"]
[Site "Chess.com"]
[Date "2024.01.16"]
[Round "9"]
[White "iwanyu"]
[Black "vidavi"]
[Result "1-0"]
[WhiteElo "2673"]
[BlackElo "2502"]
[TimeControl "180+1"]
[EndTime "15:41:51 PST"]
[Termination "iwanyu won by resignation"]

1. d4 {[%clk 0:03:00.9]} 1... Nf6 {[%clk 0:02:41.8]} 2. c4 {[%clk 0:03:01]} 2...
g6 {[%clk 0:02:41.8]} 3. Nf3 {[%clk 0:03:01.4]} 3... Bg7 {[%clk 0:02:41.9]} 4.
g3 {[%clk 0:03:02.1]} 4... O-O {[%clk 0:02:42]} 5. Bg2 {[%clk 0:03:01.6]} 5...
c6 {[%clk 0:02:41.7]} 6. O-O {[%clk 0:02:57.8]} 6... d5 {[%clk 0:02:42.3]} 7.
Nc3 {[%clk 0:02:58.3]} 7... dxc4 {[%clk 0:02:38.7]} 8. e4 {[%clk 0:02:58.2]}
8... b5 {[%clk 0:02:37.5]} 9. Qe2 {[%clk 0:02:56.4]} 9... Bb7 {[%clk 0:02:35.6]}
10. e5 {[%clk 0:02:51.9]} 10... Nd5 {[%clk 0:02:35.4]} 11. e6 {[%clk 0:02:52.4]}
11... f6 {[%clk 0:02:10.4]} 12. h4 {[%clk 0:02:44]} 12... Na6 {[%clk 0:02:07.4]}
13. h5 {[%clk 0:02:35]} 13... Nxc3 {[%clk 0:01:47.6]} 14. bxc3 {[%clk
0:02:34.2]} 14... c5 {[%clk 0:01:48.2]} 15. d5 {[%clk 0:02:28.2]} 15... Qxd5
{[%clk 0:01:43.8]} 16. Nh4 {[%clk 0:02:26.5]} 1-0

[Event "Late-Titled-Tuesday-Blitz-January-16-2024"]
[Site "Chess.com"]
[Date "2024.01.16"]
[Round "9"]
[White "Durarbayli"]
[Black "Piotrek1979"]
[Result "1-0"]
[WhiteElo "2836"]
[BlackElo "2431"]
[TimeControl "180+1"]
[EndTime "15:43:11 PST"]
[Termination "Durarbayli won by resignation"]

1. e4 {[%clk 0:03:00.9]} 1... c6 {[%clk 0:02:59.4]} 2. d4 {[%clk 0:03:00.9]}
2... d5 {[%clk 0:02:59.9]} 3. exd5 {[%clk 0:03:01.8]} 3... cxd5 {[%clk
0:02:59.8]} 4. c4 {[%clk 0:03:02.5]} 4... Nf6 {[%clk 0:02:58.8]} 5. Nc3 {[%clk
0:03:03.1]} 5... e6 {[%clk 0:02:56.5]} 6. Nf3 {[%clk 0:03:03.2]} 6... Bb4 {[%clk
0:02:54.9]} 7. cxd5 {[%clk 0:03:03.2]} 7... Nxd5 {[%clk 0:02:53.7]} 8. Bd2
{[%clk 0:03:02.5]} 8... O-O {[%clk 0:02:52.6]} 9. Bd3 {[%clk 0:03:02.6]} 9...
Nc6 {[%clk 0:02:46.6]} 10. O-O {[%clk 0:03:02.3]} 10... Be7 {[%clk 0:02:44.3]}
11. Re1 {[%clk 0:03:00.8]} 11... Nf6 {[%clk 0:02:29.2]} 12. Bg5 {[%clk
0:02:59.6]} 12... b6 {[%clk 0:02:13.7]} 13. Rc1 {[%clk 0:02:56.3]} 13... Bb7
{[%clk 0:02:12.9]} 14. Bb1 {[%clk 0:02:54.1]} 14... Nb4 {[%clk 0:02:08.7]} 15.
Ne5 {[%clk 0:02:52.1]} 15... Rc8 {[%clk 0:02:01.6]} 16. h4 {[%clk 0:02:47]}
16... h6 {[%clk 0:01:56.6]} 17. Bxf6 {[%clk 0:02:33.5]} 17... Bxf6 {[%clk
0:01:57.5]} 18. a3 {[%clk 0:02:33.5]} 18... Nd5 {[%clk 0:01:41.2]} 19. Qd3
{[%clk 0:02:31.3]} 19... g6 {[%clk 0:01:35.9]} 20. Nxg6 {[%clk 0:02:20.7]} 20...
fxg6 {[%clk 0:01:02]} 21. Qxg6+ {[%clk 0:02:21.6]} 21... Bg7 {[%clk 0:01:01.9]}
22. Qh7+ {[%clk 0:02:21.3]} 22... Kf7 {[%clk 0:01:01.8]} 23. Bg6+ {[%clk
0:02:22.1]} 1-0

[Event "Late-Titled-Tuesday-Blitz-January-16-2024"]
[Site "Chess.com"]
[Date "2024.01.16"]
[Round "9"]
[White "glebus008"]
[Black "zverr1"]
[Result "0-1"]
[WhiteElo "2327"]
[BlackElo "2508"]
[TimeControl "180+1"]
[EndTime "15:43:27 PST"]
[Termination "zverr1 won by checkmate"]

1. a3 {[%clk 0:02:56.4]} 1... g6 {[%clk 0:02:57.3]} 2. d4 {[%clk 0:02:54.1]}
2... Nf6 {[%clk 0:02:56.6]} 3. e3 {[%clk 0:02:53.7]} 3... d5 {[%clk 0:02:53.2]}
4. Nf3 {[%clk 0:02:45.2]} 4... Bg7 {[%clk 0:02:53.4]} 5. c4 {[%clk 0:02:43.7]}
5... O-O {[%clk 0:02:52.2]} 6. Nc3 {[%clk 0:02:43.3]} 6... b6 {[%clk 0:02:29.7]}
7. b4 {[%clk 0:02:42.3]} 7... c5 {[%clk 0:02:25.4]} 8. bxc5 {[%clk 0:02:39.2]}
8... bxc5 {[%clk 0:02:25.3]} 9. cxd5 {[%clk 0:02:31.1]} 9... Nxd5 {[%clk
0:02:17.4]} 10. Nxd5 {[%clk 0:02:30.7]} 10... Qxd5 {[%clk 0:02:18.3]} 11. Bb2
{[%clk 0:02:24.9]} 11... Nc6 {[%clk 0:02:09.9]} 12. Rc1 {[%clk 0:02:10]} 12...
cxd4 {[%clk 0:02:09.1]} 13. Nxd4 {[%clk 0:02:09]} 13... Nxd4 {[%clk 0:02:06.9]}
14. Bxd4 {[%clk 0:02:08.1]} 14... Rd8 {[%clk 0:01:33]} 15. Qf3 {[%clk
0:01:02.5]} 15... Qa5+ {[%clk 0:01:24.6]} 16. Bc3 {[%clk 0:01:01.2]} 16... Bxc3+
{[%clk 0:01:22.8]} 17. Rxc3 {[%clk 0:01:00.3]} 17... Qxc3+ {[%clk 0:01:21.9]}
18. Ke2 {[%clk 0:01:01.2]} 18... Qd2# {[%clk 0:01:22.3]} 0-1

[Event "Late-Titled-Tuesday-Blitz-January-16-2024"]
[Site "Chess.com"]
[Date "2024.01.16"]
[Round "9"]
[White "Sic_Transit_GM"]
[Black "Matrix3x3a"]
[Result "1-0"]
[WhiteElo "2665"]
[BlackElo "2471"]
[TimeControl "180+1"]
[EndTime "15:43:53 PST"]
[Termination "Sic_Transit_GM won by resignation"]

1. g3 {[%clk 0:03:00.9]} 1... e5 {[%clk 0:02:57.7]} 2. Bg2 {[%clk 0:03:01.2]}
2... d5 {[%clk 0:02:56.3]} 3. Nf3 {[%clk 0:03:01.3]} 3... Nc6 {[%clk 0:02:55.4]}
4. d3 {[%clk 0:03:01.1]} 4... Nf6 {[%clk 0:02:54.9]} 5. O-O {[%clk 0:03:01.1]}
5... Be7 {[%clk 0:02:54.9]} 6. c4 {[%clk 0:02:59.8]} 6... O-O {[%clk 0:02:54.7]}
7. cxd5 {[%clk 0:02:58.9]} 7... Nxd5 {[%clk 0:02:55.6]} 8. a3 {[%clk 0:02:58.3]}
8... f6 {[%clk 0:02:55]} 9. b4 {[%clk 0:02:56.8]} 9... a6 {[%clk 0:02:51.9]} 10.
Bb2 {[%clk 0:02:56.1]} 10... Be6 {[%clk 0:02:51.5]} 11. Nbd2 {[%clk 0:02:56]}
11... Qd7 {[%clk 0:02:51]} 12. Nb3 {[%clk 0:02:52.6]} 12... b6 {[%clk
0:02:50.5]} 13. Rc1 {[%clk 0:02:51.9]} 13... Rfd8 {[%clk 0:02:45]} 14. e4 {[%clk
0:02:50.2]} 14... Ndxb4 {[%clk 0:02:43]} 15. axb4 {[%clk 0:02:49.3]} 15... Nxb4
{[%clk 0:02:43.9]} 16. d4 {[%clk 0:02:47.3]} 16... exd4 {[%clk 0:02:41.9]} 17.
Nbxd4 {[%clk 0:02:46.3]} 17... Bf7 {[%clk 0:02:41.7]} 18. Nf5 {[%clk 0:02:44.6]}
18... Bf8 {[%clk 0:02:40.1]} 19. Bh3 {[%clk 0:02:03]} 19... Qe8 {[%clk
0:02:31.7]} 20. Qe2 {[%clk 0:01:54]} 20... c5 {[%clk 0:02:22.2]} 21. Rfd1 {[%clk
0:01:49.4]} 21... b5 {[%clk 0:02:09.8]} 22. e5 {[%clk 0:01:45.9]} 22... c4
{[%clk 0:02:03.3]} 23. e6 {[%clk 0:01:36.5]} 23... Bg6 {[%clk 0:01:53.1]} 24. e7
{[%clk 0:01:31.9]} 24... Rxd1+ {[%clk 0:01:34.4]} 25. Rxd1 {[%clk 0:01:32.8]}
25... Nd3 {[%clk 0:01:19.7]} 26. exf8=Q+ {[%clk 0:01:28.7]} 26... Qxf8 {[%clk
0:01:19.6]} 27. Ne7+ {[%clk 0:01:26.8]} 27... Kh8 {[%clk 0:01:19.2]} 28. Nxg6+
{[%clk 0:01:26.6]} 28... hxg6 {[%clk 0:01:20.1]} 29. Rxd3 {[%clk 0:01:22.8]}
29... cxd3 {[%clk 0:01:19.4]} 30. Qxd3 {[%clk 0:01:23.7]} 30... Rd8 {[%clk
0:01:18.1]} 31. Qxg6 {[%clk 0:01:22.4]} 31... Rd1+ {[%clk 0:01:16.8]} 32. Kg2
{[%clk 0:01:21.7]} 1-0

[Event "Late-Titled-Tuesday-Blitz-January-16-2024"]
[Site "Chess.com"]
[Date "2024.01.16"]
[Round "9"]
[White "DavidGavrilescu18"]
[Black "aghasiyevkamal"]
[Result "1-0"]
[WhiteElo "2793"]
[BlackElo "2622"]
[TimeControl "180+1"]
[EndTime "15:44:19 PST"]
[Termination "DavidGavrilescu18 won by resignation"]

1. e4 {[%clk 0:03:00.9]} 1... e5 {[%clk 0:02:58.5]} 2. Bc4 {[%clk 0:02:59.5]}
2... Nf6 {[%clk 0:02:56.9]} 3. Nc3 {[%clk 0:02:59.8]} 3... Bc5 {[%clk
0:02:54.1]} 4. d3 {[%clk 0:02:59.9]} 4... d6 {[%clk 0:02:54.1]} 5. f4 {[%clk
0:02:59.9]} 5... exf4 {[%clk 0:02:35.2]} 6. Bxf4 {[%clk 0:02:59]} 6... h6 {[%clk
0:02:33.6]} 7. Nf3 {[%clk 0:02:58.2]} 7... Nc6 {[%clk 0:02:28.9]} 8. Na4 {[%clk
0:02:57.1]} 8... Bb6 {[%clk 0:02:15.9]} 9. Nxb6 {[%clk 0:02:56.5]} 9... axb6
{[%clk 0:02:16.1]} 10. O-O {[%clk 0:02:57]} 10... O-O {[%clk 0:02:14.4]} 11. Qd2
{[%clk 0:02:49.3]} 11... Kh7 {[%clk 0:02:01]} 12. a3 {[%clk 0:02:30.9]} 12...
Be6 {[%clk 0:01:57.1]} 13. Qc3 {[%clk 0:02:14.8]} 13... d5 {[%clk 0:01:44.9]}
14. exd5 {[%clk 0:02:14.1]} 14... Nxd5 {[%clk 0:01:44.8]} 15. Bxd5 {[%clk
0:02:14.6]} 15... Bxd5 {[%clk 0:01:44.9]} 16. Rae1 {[%clk 0:02:11.6]} 16... Bxf3
{[%clk 0:01:40.4]} 17. Rxf3 {[%clk 0:02:11.3]} 17... Qd4+ {[%clk 0:01:40.6]} 18.
Qxd4 {[%clk 0:02:08.8]} 18... Nxd4 {[%clk 0:01:40.2]} 19. Rf2 {[%clk 0:02:09.3]}
19... c6 {[%clk 0:01:27.2]} 20. Be3 {[%clk 0:02:07.1]} 20... Rae8 {[%clk
0:01:20.8]} 21. Kf1 {[%clk 0:02:06.7]} 21... Ne6 {[%clk 0:00:41]} 22. Bxb6
{[%clk 0:02:05.6]} 22... g5 {[%clk 0:00:41]} 23. Ba5 {[%clk 0:02:01.7]} 23...
Kg6 {[%clk 0:00:40.2]} 24. Bc3 {[%clk 0:02:01.7]} 24... f5 {[%clk 0:00:38.3]}
25. Rfe2 {[%clk 0:02:02]} 25... Kf7 {[%clk 0:00:27.7]} 26. Re5 {[%clk 0:01:59]}
26... Ng7 {[%clk 0:00:27.7]} 27. Rxe8 {[%clk 0:01:54]} 27... Nxe8 {[%clk
0:00:27.6]} 28. Bb4 {[%clk 0:01:54.3]} 28... Rg8 {[%clk 0:00:22.7]} 29. Re7+
{[%clk 0:01:54.1]} 29... Kf6 {[%clk 0:00:22.6]} 30. Rxb7 {[%clk 0:01:55]} 30...
f4 {[%clk 0:00:18.6]} 31. a4 {[%clk 0:01:55.1]} 31... Ke6 {[%clk 0:00:16.7]} 32.
a5 {[%clk 0:01:54.9]} 32... Nf6 {[%clk 0:00:17.4]} 33. a6 {[%clk 0:01:53.7]}
33... Nd5 {[%clk 0:00:17.7]} 34. Bc5 {[%clk 0:01:54.1]} 1-0

[Event "Late-Titled-Tuesday-Blitz-January-16-2024"]
[Site "Chess.com"]
[Date "2024.01.16"]
[Round "9"]
[White "DonJuan_34"]
[Black "imdarealist"]
[Result "1-0"]
[WhiteElo "2409"]
[BlackElo "2283"]
[TimeControl "180+1"]
[EndTime "15:44:26 PST"]
[Termination "DonJuan_34 won by resignation"]

1. d4 {[%clk 0:02:56.8]} 1... e6 {[%clk 0:02:48.4]} 2. c4 {[%clk 0:02:51.9]}
2... d5 {[%clk 0:02:49.3]} 3. Nc3 {[%clk 0:02:51.7]} 3... Nf6 {[%clk 0:02:49.3]}
4. Nf3 {[%clk 0:02:50.4]} 4... Be7 {[%clk 0:02:48.6]} 5. Bg5 {[%clk 0:02:43.4]}
5... Ne4 {[%clk 0:02:45.7]} 6. Bf4 {[%clk 0:02:40.8]} 6... Nxc3 {[%clk
0:02:43.6]} 7. bxc3 {[%clk 0:02:40.4]} 7... Bd6 {[%clk 0:02:40.9]} 8. e3 {[%clk
0:02:39.1]} 8... Bxf4 {[%clk 0:02:40.6]} 9. exf4 {[%clk 0:02:39.1]} 9... O-O
{[%clk 0:02:41.5]} 10. c5 {[%clk 0:02:36]} 10... Nd7 {[%clk 0:02:41.1]} 11. Bd3
{[%clk 0:02:33.3]} 11... Nf6 {[%clk 0:02:40.7]} 12. O-O {[%clk 0:02:32.2]} 12...
Bd7 {[%clk 0:02:40.8]} 13. Ne5 {[%clk 0:02:30.9]} 13... c6 {[%clk 0:02:39.4]}
14. a4 {[%clk 0:02:28.2]} 14... b6 {[%clk 0:02:38.4]} 15. cxb6 {[%clk
0:02:21.2]} 15... axb6 {[%clk 0:02:30.8]} 16. Re1 {[%clk 0:02:10.5]} 16... c5
{[%clk 0:02:06.9]} 17. Bb5 {[%clk 0:02:07.3]} 17... Bxb5 {[%clk 0:01:52.7]} 18.
axb5 {[%clk 0:02:08.2]} 18... Ne4 {[%clk 0:01:51.7]} 19. Qd3 {[%clk 0:01:56.9]}
19... Qh4 {[%clk 0:01:40.6]} 20. g3 {[%clk 0:01:55.3]} 20... Qh5 {[%clk
0:01:30]} 21. f3 {[%clk 0:01:52.6]} 21... Nf6 {[%clk 0:01:28.6]} 22. Ra6 {[%clk
0:01:49.8]} 22... cxd4 {[%clk 0:01:19.6]} 23. cxd4 {[%clk 0:01:47.6]} 23... Rfc8
{[%clk 0:01:16.7]} 24. Nc6 {[%clk 0:01:05.5]} 24... Qg6 {[%clk 0:00:46.1]} 25.
Ne7+ {[%clk 0:01:01.9]} 1-0

[Event "Late-Titled-Tuesday-Blitz-January-16-2024"]
[Site "Chess.com"]
[Date "2024.01.16"]
[Round "9"]
[White "ToddBryant"]
[Black "tarno17"]
[Result "1-0"]
[WhiteElo "2303"]
[BlackElo "2166"]
[TimeControl "180+1"]
[EndTime "15:44:29 PST"]
[Termination "ToddBryant won by resignation"]

1. e4 {[%clk 0:03:00.9]} 1... c5 {[%clk 0:02:58.6]} 2. Nf3 {[%clk 0:03:00.2]}
2... e6 {[%clk 0:02:59.2]} 3. d4 {[%clk 0:03:00.3]} 3... cxd4 {[%clk 0:02:59.7]}
4. Nxd4 {[%clk 0:03:01.2]} 4... a6 {[%clk 0:02:59.7]} 5. Bd3 {[%clk 0:03:00.8]}
5... Bc5 {[%clk 0:02:55.5]} 6. Nb3 {[%clk 0:02:59.5]} 6... Be7 {[%clk
0:02:55.3]} 7. Qg4 {[%clk 0:02:58.7]} 7... g6 {[%clk 0:02:55.3]} 8. Qd1 {[%clk
0:02:57.7]} 8... d6 {[%clk 0:02:53.6]} 9. c4 {[%clk 0:02:58]} 9... Nf6 {[%clk
0:02:53.7]} 10. Nc3 {[%clk 0:02:58.4]} 10... Nbd7 {[%clk 0:02:53.4]} 11. O-O
{[%clk 0:02:58.3]} 11... Qc7 {[%clk 0:02:51.3]} 12. Qe2 {[%clk 0:02:57.7]} 12...
b6 {[%clk 0:02:51.8]} 13. f4 {[%clk 0:02:55.1]} 13... Bb7 {[%clk 0:02:52]} 14.
Be3 {[%clk 0:02:55]} 14... Rd8 {[%clk 0:02:41.8]} 15. Rae1 {[%clk 0:02:54]}
15... O-O {[%clk 0:02:34.9]} 16. h3 {[%clk 0:02:36.7]} 16... Kh8 {[%clk
0:02:27.5]} 17. Qf2 {[%clk 0:02:29.2]} 17... Rg8 {[%clk 0:02:01.1]} 18. Bb1
{[%clk 0:02:17.4]} 18... Nc5 {[%clk 0:01:35.1]} 19. e5 {[%clk 0:02:11.4]} 19...
dxe5 {[%clk 0:01:28.3]} 20. fxe5 {[%clk 0:02:05.2]} 20... Qxe5 {[%clk
0:01:15.5]} 21. Bxc5 {[%clk 0:01:47.6]} 21... bxc5 {[%clk 0:01:12.6]} 22. Rxe5
{[%clk 0:01:45.6]} 22... Rd6 {[%clk 0:00:50.5]} 23. Ree1 {[%clk 0:01:32.7]}
23... Rf8 {[%clk 0:00:44.1]} 24. Ne4 {[%clk 0:01:27.6]} 24... Bxe4 {[%clk
0:00:32.2]} 25. Bxe4 {[%clk 0:01:28.5]} 25... Rfd8 {[%clk 0:00:32.7]} 26. Bf3
{[%clk 0:01:23.4]} 26... Rd3 {[%clk 0:00:22.9]} 27. Rd1 {[%clk 0:01:20.6]} 1-0